fUST/lending_fUST_20250831
["ID","MTS","AMOUNT","RATE_DAILY","PERIOD"]
[382507054,1756650642679,-186.55579662,0.00017496,2]
[382507055,1756650642689,-480.0,0.00017496,2]
[382507056,1756650642698,-480.0,0.00017496,2]
[382507057,1756650642709,-748.51,0.00017496,2]
[382507058,1756650642718,-480.0,0.00017496,2]
[382507059,1756650642727,-480.0,0.00017496,2]
[382507060,1756650642737,-916.75,0.00017496,2]
[382507061,1756650642748,-480.0,0.00017496,2]
[382507062,1756650642758,-480.0,0.00017496,2]
[382507063,1756650642767,-819.39,0.00017496,2]
[382507064,1756650642777,-480.0,0.00017496,2]
[382507065,1756650642786,-480.0,0.00017496,2]
[382507066,1756650642796,-480.0,0.00017496,2]
[382507067,1756650642806,-480.0,0.00017496,2]
[382507068,1756650642815,-480.0,0.00017496,2]
[382507069,1756650642824,-1000.0,0.00017496,2]
[382507070,1756650642834,-510.7510522,0.00017496,2]
[382507071,1756650642843,-481.78518685,0.00017496,2]
[382507072,1756650642852,-960.45,0.00017496,2]
[382507073,1756650642861,-480.0,0.00017496,2]
[382507074,1756650642871,-480.0,0.00017496,2]
[382507075,1756650642880,-480.0,0.00017496,2]
[382507076,1756650642890,-410.49221079,0.00017496,2]
[382507077,1756650642899,-480.0,0.00017496,2]
[382507078,1756650642909,-480.0,0.00017496,2]
[382507079,1756650642918,-480.0,0.00017496,2]
[382507080,1756650642927,-480.0,0.00017496,2]
[382507081,1756650642937,-480.0,0.00017496,2]
[382507082,1756650642947,-568.26,0.00017496,2]
[382507085,1756650642956,-572.99,0.00017496,2]
[382507086,1756650642966,-480.0,0.00017496,2]
[382507087,1756650642975,-480.0,0.00017496,2]
[382507088,1756650642985,-480.0,0.00017496,2]
[382507089,1756650642996,-480.0,0.00017496,2]
[382507090,1756650643005,-480.0,0.00017496,2]
[382507091,1756650643015,-672.68,0.00017496,2]
[382507092,1756650643024,-151.0,0.00017496,2]
[382507093,1756650643034,-520.73,0.00017496,2]
[382507094,1756650643043,-151.0,0.00017496,2]
[382507095,1756650643052,-480.0,0.00017496,2]
[382507096,1756650643061,-151.0,0.00017496,2]
[382507097,1756650643070,-151.0,0.00017496,2]
[382507098,1756650643079,-480.0,0.00017496,2]
[382507099,1756650643089,-671.13,0.00017496,2]
[382507100,1756650643099,-1408.3,0.00017496,2]
[382507101,1756650643108,-297.60048262,0.00017496,2]
[382507103,1756650643117,-1375.66,0.00017496,2]
[382507105,1756650643126,-480.0,0.00017496,2]
[382507107,1756650643136,-631.1,0.00017496,2]
[382507108,1756650643145,-480.0,0.00017496,2]
[382507109,1756650643154,-480.0,0.00017496,2]
[382507110,1756650643163,-480.0,0.00017496,2]
[382507111,1756650643172,-480.0,0.00017496,2]
[382507112,1756650643182,-1373.08,0.00017496,2]
[382507113,1756650643191,-421.55447545,0.00017496,2]
[382507114,1756650643201,-480.0,0.00017496,2]
[382507115,1756650643210,-480.0,0.00017496,2]
[382507116,1756650643221,-480.0,0.00017496,2]
[382507117,1756650643231,-480.0,0.00017496,2]
[382507118,1756650643241,-480.0,0.00017496,2]
[382507119,1756650643251,-556.63,0.00017496,2]
[382507120,1756650643261,-480.0,0.00017496,2]
[382507121,1756650643271,-480.0,0.00017496,2]
[382507122,1756650643280,-480.0,0.00017496,2]
[382507123,1756650643289,-742.11,0.00017496,2]
[382507124,1756650643300,-480.0,0.00017496,2]
[382507125,1756650643309,-480.0,0.00017496,2]
[382507126,1756650643319,-324.0913876,0.00017496,2]
[382507127,1756650643328,-480.0,0.00017496,2]
[382507128,1756650643338,-175.10694815,0.00017496,2]
[382507129,1756650643347,-480.0,0.00017496,2]
[382507130,1756650643357,-480.0,0.00017496,2]
[382507131,1756650643366,-480.0,0.00017496,2]
[382507132,1756650643375,-528.02,0.00017496,2]
[382507133,1756650643386,-780.5,0.00017496,2]
[382507134,1756650643396,-527.57,0.00017496,2]
[382507135,1756650643406,-506.45,0.00017496,2]
[382507137,1756650643416,-480.0,0.00017496,2]
[382507138,1756650643426,-480.0,0.00017496,2]
[382507139,1756650643436,-480.0,0.00017496,2]
[382507140,1756650643446,-480.0,0.00017496,2]
[382507141,1756650643455,-480.0,0.00017496,2]
[382507142,1756650643465,-480.0,0.00017496,2]
[382507143,1756650643474,-480.0,0.00017496,2]
[382507144,1756650643483,-480.0,0.00017496,2]
[382507145,1756650643493,-536.23,0.00017496,2]
[382507146,1756650643502,-480.0,0.00017496,2]
[382507147,1756650643513,-622.63,0.00017496,2]
[382507148,1756650643523,-480.0,0.00017496,2]
[382507149,1756650643533,-480.0,0.00017496,2]
[382507150,1756650643542,-1003.54527382,0.00017496,2]
[382507151,1756650643551,-480.0,0.00017496,2]
[382507152,1756650643561,-480.0,0.00017496,2]
[382507153,1756650643572,-480.0,0.00017496,2]
[382507154,1756650643582,-480.0,0.00017496,2]
[382507155,1756650643592,-480.0,0.00017496,2]
[382507156,1756650643602,-480.0,0.00017496,2]
[382507157,1756650643765,-480.0,0.00017496,2]
[382507158,1756650643776,-480.0,0.00017496,2]
[382507159,1756650643786,-480.0,0.00017496,2]
[382507160,1756650643796,-799.67,0.00017496,2]
[382507161,1756650643806,-927.7,0.00017496,2]
[382507162,1756650643817,-480.0,0.00017496,2]
[382507163,1756650643827,-480.0,0.00017496,2]
[382507164,1756650643838,-480.0,0.00017496,2]
[382507165,1756650643848,-500.0,0.00017496,2]
[382507166,1756650643859,-751.57,0.00017496,2]
[382507167,1756650643868,-272.048462,0.00017496,2]
[382507168,1756650643879,-480.77248224,0.00017496,2]
[382507169,1756650643891,-480.0,0.00017496,2]
[382507170,1756650643900,-481.03866286,0.00017496,2]
[382507171,1756650643909,-480.0,0.00017496,2]
[382507172,1756650643920,-480.0,0.00017496,2]
[382507173,1756650643930,-480.0,0.00017496,2]
[382507174,1756650643939,-603.09,0.00017496,2]
[382507175,1756650643949,-480.0,0.00017496,2]
[382507176,1756650643959,-480.0,0.00017496,2]
[382507177,1756650643968,-480.0,0.00017496,2]
[382507178,1756650643979,-480.0,0.00017496,2]
[382507179,1756650643989,-480.0,0.00017496,2]
[382507180,1756650643999,-151.0,0.00017496,2]
[382507181,1756650644008,-160.424535,0.00017496,2]
[382507182,1756650644017,-151.0,0.00017496,2]
[382507183,1756650644027,-480.0,0.00017496,2]
[382507184,1756650644036,-480.0,0.00017496,2]
[382507185,1756650644046,-480.0,0.00017496,2]
[382507186,1756650644055,-498.92,0.00017496,2]
[382507187,1756650644065,-151.0,0.00017496,2]
[382507188,1756650644076,-995.31,0.00017496,2]
[382507189,1756650644086,-480.0,0.00017496,2]
[382507190,1756650644095,-480.0,0.00017496,2]
[382507191,1756650644106,-151.0,0.00017496,2]
[382507192,1756650644115,-480.0,0.00017496,2]
[382507193,1756650644125,-480.0,0.00017496,2]
[382507194,1756650644134,-480.0,0.00017496,2]
[382507195,1756650644144,-480.0,0.00017496,2]
[382507196,1756650644153,-480.0,0.00017496,2]
[382507197,1756650644164,-151.0,0.00017496,2]
[382507198,1756650644173,-151.0,0.00017496,2]
[382507199,1756650644183,-151.0,0.00017496,2]
[382507200,1756650644192,-151.0,0.00017496,2]
[382507201,1756650644203,-1189.58,0.00017496,2]
[382507202,1756650644212,-151.0,0.00017496,2]
[382507203,1756650644222,-151.0,0.00017496,2]
[382507204,1756650644232,-151.0,0.00017496,2]
[382507205,1756650644242,-169.664587,0.00017496,2]
[382507206,1756650644252,-526.9,0.00017496,2]
[382507207,1756650644262,-151.0,0.00017496,2]
[382507208,1756650644271,-151.0,0.00017496,2]
[382507209,1756650644281,-517.27,0.00017496,2]
[382507210,1756650644291,-151.0,0.00017496,2]
[382507211,1756650644301,-151.0,0.00017496,2]
[382507212,1756650644311,-151.0,0.00017496,2]
[382507213,1756650644321,-493.81,0.00017496,2]
[382507214,1756650644331,-226.906472,0.00017496,2]
[382507215,1756650644342,-151.0,0.00017496,2]
[382507216,1756650644352,-151.0,0.00017496,2]
[382507217,1756650644362,-480.0,0.00017496,2]
[382507218,1756650644371,-1121.22,0.00017496,2]
[382507219,1756650644380,-480.0,0.00017496,2]
[382507220,1756650644390,-396.759893,0.00017496,2]
[382507221,1756650644400,-555.89,0.00017496,2]
[382507222,1756650644410,-396.759893,0.00017496,2]
[382507223,1756650644420,-396.759893,0.00017496,2]
[382507224,1756650644429,-535.97,0.00017496,2]
[382507225,1756650644439,-151.0,0.00017496,2]
[382507226,1756650644448,-151.0,0.00017496,2]
[382507227,1756650644457,-151.0,0.00017496,2]
[382507228,1756650644467,-396.759893,0.00017496,2]
[382507229,1756650644476,-151.0,0.00017496,2]
[382507230,1756650644485,-480.0,0.00017496,2]
[382507231,1756650644495,-151.0,0.00017496,2]
[382507232,1756650644504,-480.0,0.00017496,2]
[382507233,1756650644514,-480.0,0.00017496,2]
[382507234,1756650644524,-480.0,0.00017496,2]
[382507235,1756650644534,-480.0,0.00017496,2]
[382507236,1756650644543,-480.0,0.00017496,2]
[382507237,1756650644553,-480.0,0.00017496,2]
[382507238,1756650644562,-1118.1,0.00017496,2]
[382507239,1756650644572,-151.0,0.00017496,2]
[382507240,1756650644582,-480.0,0.00017496,2]
[382507241,1756650644592,-694.21,0.00017496,2]
[382507242,1756650644602,-772.65,0.00017496,2]
[382507243,1756650644611,-480.0,0.00017496,2]
[382507244,1756650644621,-480.0,0.00017496,2]
[382507245,1756650644630,-480.0,0.00017496,2]
[382507246,1756650644639,-151.0,0.00017496,2]
[382507247,1756650644649,-480.0,0.00017496,2]
[382507248,1756650644658,-480.0,0.00017496,2]
[382507249,1756650644669,-812.74,0.00017496,2]
[382507250,1756650644682,-480.0,0.00017496,2]
[382507251,1756650644691,-480.0,0.00017496,2]
[382507252,1756650644702,-480.0,0.00017496,2]
[382507253,1756650644711,-547.42,0.00017496,2]
[382507254,1756650644722,-151.0,0.00017496,2]
[382507255,1756650644732,-151.0,0.00017496,2]
[382507256,1756650644742,-151.0,0.00017496,2]
[382507257,1756650644753,-1136.59,0.00017496,2]
[382507258,1756650644763,-151.0,0.00017496,2]
[382507259,1756650644774,-151.0,0.00017496,2]
[382507260,1756650644784,-151.0,0.00017496,2]
[382507261,1756650644794,-151.0,0.00017496,2]
[382507262,1756650644804,-2003.24,0.00017496,2]
[382507263,1756650644814,-151.0,0.00017496,2]
[382507264,1756650644824,-536.29,0.00017496,2]
[382507265,1756650644834,-151.0,0.00017496,2]
[382507266,1756650644845,-480.0,0.00017496,2]
[382507267,1756650644854,-151.0,0.00017496,2]
[382507268,1756650644864,-507.97,0.00017496,2]
[382507269,1756650644874,-480.64942555,0.00017496,2]
[382507270,1756650644884,-172.580756,0.00017496,2]
[382507271,1756650644894,-172.580756,0.00017496,2]
[382507272,1756650644903,-172.580756,0.00017496,2]
[382507273,1756650644913,-810.3,0.00017496,2]
[382507274,1756650644923,-172.580756,0.00017496,2]
[382507275,1756650644932,-480.0,0.00017496,2]
[382507276,1756650644941,-151.0,0.00017496,2]
[382507277,1756650644951,-151.0,0.00017496,2]
[382507278,1756650644962,-151.0,0.00017496,2]
[382507279,1756650644973,-500.35,0.00017496,2]
[382507280,1756650644982,-184.038744,0.00017496,2]
[382507281,1756650644991,-151.0,0.00017496,2]
[382507282,1756650645002,-151.0,0.00017496,2]
[382507283,1756650645012,-151.0,0.00017496,2]
[382507284,1756650645021,-151.0,0.00017496,2]
[382507285,1756650645032,-480.0,0.00017496,2]
[382507286,1756650645042,-480.0,0.00017496,2]
[382507287,1756650645052,-151.0,0.00017496,2]
[382507288,1756650645061,-548.11,0.00017496,2]
[382507289,1756650645071,-151.0,0.00017496,2]
[382507290,1756650645080,-480.0,0.00017496,2]
[382507291,1756650645090,-549.709604,0.00017496,2]
[382507292,1756650645100,-151.0,0.00017496,2]
[382507293,1756650645110,-151.943352,0.00017496,2]
[382507294,1756650645121,-549.709604,0.00017496,2]
[382507295,1756650645130,-549.709604,0.00017496,2]
[382507296,1756650645141,-151.0,0.00017496,2]
[382507297,1756650645151,-480.0,0.00017496,2]
[382507298,1756650645162,-549.709604,0.00017496,2]
[382507299,1756650645172,-151.0,0.00017496,2]
[382507300,1756650645182,-575.82,0.00017496,2]
[382507301,1756650645191,-151.0,0.00017498,2]
[382507302,1756650645201,-768.77,0.00017498,2]
[382507303,1756650645211,-1056.73,0.00017498,2]
[382507304,1756650645220,-1232.53,0.00017498,2]
[382507305,1756650645230,-151.0,0.00017498,2]
[382507306,1756650645240,-151.0,0.00017498,2]
[382507307,1756650645250,-480.0,0.00017498,2]
[382507308,1756650645260,-1203.78,0.00017498,2]
[382507309,1756650645269,-604.87,0.00017498,2]
[382507310,1756650645279,-480.0,0.00017498,2]
[382507311,1756650645288,-480.0,0.00017498,2]
[382507312,1756650645298,-151.0,0.00017498,2]
[382507313,1756650645307,-151.0,0.00017498,2]
[382507314,1756650645317,-151.0,0.00017498,2]
[382507315,1756650645326,-151.0,0.00017498,2]
[382507316,1756650645336,-151.0,0.00017498,2]
[382507318,1756650645345,-151.0,0.00017498,2]
[382507319,1756650645355,-151.0,0.00017498,2]
[382507321,1756650645364,-151.0,0.00017498,2]
[382507322,1756650645374,-151.0,0.00017498,2]
[382507323,1756650645384,-151.0,0.00017498,2]
[382507324,1756650645393,-151.0,0.00017498,2]
[382507325,1756650645403,-151.0,0.00017498,2]
[382507326,1756650645412,-480.0,0.00017498,2]
[382507327,1756650645422,-151.0,0.00017498,2]
[382507328,1756650645431,-480.0,0.00017498,2]
[382507329,1756650645442,-481.7167146,0.00017498,2]
[382507330,1756650645451,-607.75,0.00017498,2]
[382507331,1756650645461,-151.0,0.00017498,2]
[382507332,1756650645471,-151.0,0.00017498,2]
[382507334,1756650645480,-151.0,0.00017498,2]
[382507335,1756650645490,-151.0,0.00017498,2]
[382507337,1756650645499,-151.0,0.00017498,2]
[382507339,1756650645510,-151.0,0.00017498,2]
[382507341,1756650645520,-154.702727,0.00017498,2]
[382507343,1756650645529,-270.445229,0.00017498,2]
[382507345,1756650645538,-151.0,0.00017498,2]
[382507347,1756650645548,-151.0,0.00017498,2]
[382507349,1756650645557,-151.0,0.00017498,2]
[382507351,1756650645567,-151.0,0.00017498,2]
[382507353,1756650645576,-151.0,0.00017498,2]
[382507355,1756650645585,-480.0,0.00017499,2]
[382507357,1756650645595,-480.0,0.00017499,2]
[382507359,1756650645605,-497.09,0.00017499,2]
[382507361,1756650645614,-151.0,0.00017499,2]
[382507365,1756650645623,-151.0,0.00017499,2]
[382507367,1756650645632,-151.0,0.00017499,2]
[382507371,1756650645642,-481.39767338,0.00017499,2]
[382507373,1756650645651,-803.4,0.00017499,2]
[382507376,1756650645660,-480.0,0.00017499,2]
[382507378,1756650645671,-480.0,0.00017499,2]
[382507380,1756650645681,-480.0,0.00017499,2]
[382507382,1756650645691,-480.0,0.00017499,2]
[382507383,1756650645700,-480.0,0.00017499,2]
[382507384,1756650645711,-480.0,0.00017499,2]
[382507385,1756650645722,-622.35,0.00017499,2]
[382507386,1756650645731,-480.0,0.00017499,2]
[382507387,1756650645740,-480.0,0.00017499,2]
[382507388,1756650645752,-487.56151785,0.00017499,2]
[382507390,1756650645762,-703.23,0.00017499,2]
[382507391,1756650645772,-592.05,0.00017499,2]
[382507392,1756650645781,-480.0,0.00017499,2]
[382507393,1756650645791,-287.782845,0.00017499,2]
[382507394,1756650645800,-529.92,0.00017499,2]
[382507395,1756650645810,-151.158634,0.00017499,2]
[382507396,1756650645820,-151.0,0.00017499,2]
[382507397,1756650645830,-151.0,0.00017499,2]
[382507398,1756650645840,-151.0,0.00017499,2]
[382507399,1756650645850,-168.0,0.00017499,2]
[382507400,1756650645860,-151.0,0.000175,2]
[382507401,1756650645870,-151.0,0.000175,2]
[382507402,1756650645880,-151.0,0.000175,2]
[382507403,1756650645891,-151.0,0.000175,2]
[382507404,1756650645901,-151.0,0.000175,2]
[382507405,1756650645913,-151.0,0.000175,2]
[382507406,1756650645922,-500.0,0.00017501,2]
[382507408,1756650645932,-151.0,0.00017501,2]
[382507410,1756650645941,-500.0,0.00017501,2]
[382507412,1756650645951,-500.0,0.00017501,2]
[382507413,1756650645960,-242.19928668,0.00017501,2]
[382507415,1756650645970,-1665.0,0.00017501,2]
[382507417,1756650645979,-151.0,0.00017501,2]
[382507419,1756650645988,-151.0,0.00017501,2]
[382507420,1756650645998,-500.0,0.00017501,2]
[382507421,1756650646007,-500.0,0.00017501,2]
[382507422,1756650646020,-151.0,0.00017501,2]
[382507424,1756650646029,-500.0,0.00017501,2]
[382507425,1756650646039,-151.0,0.00017501,2]
[382507426,1756650646048,-151.0,0.00017501,2]
[382507427,1756650646058,-500.0,0.00017501,2]
[382507428,1756650646068,-500.0,0.00017501,2]
[382507429,1756650646078,-500.0,0.00017501,2]
[382507430,1756650646087,-151.0,0.00017501,2]
[382507431,1756650646097,-151.0,0.00017501,2]
[382507432,1756650646106,-151.0,0.00017501,2]
[382507433,1756650646115,-168.0,0.00017536,2]
[382507434,1756650646124,-151.0,0.000176,2]
[382507435,1756650646135,-151.0,0.000176,2]
[382507436,1756650646144,-151.0,0.000176,2]
[382507437,1756650646154,-151.0,0.000176,2]
[382507438,1756650646164,-1400.0,0.00017611,2]
[382507439,1756650646176,-168.0,0.00017646,2]
[382507440,1756650646185,-220.0,0.00017647,2]
[382507441,1756650646195,-480.0,0.00017651,2]
[382507442,1756650646205,-1133.69,0.00017651,2]
[382507443,1756650646215,-435.60249108,0.00017651,2]
[382507444,1756650646225,-480.0,0.00017652,2]
[382507445,1756650646235,-480.0,0.00017652,2]
[382507446,1756650646245,-3070.04,0.00017652,2]
[382507447,1756650646255,-480.0,0.00017652,2]
[382507448,1756650646266,-677.76,0.00017652,2]
[382507449,1756650646275,-727.85,0.00017652,2]
[382507450,1756650646285,-480.0,0.00017652,2]
[382507451,1756650646294,-825.07,0.00017652,2]
[382507452,1756650646303,-480.0,0.00017652,2]
[382507453,1756650646313,-1043.61,0.00017652,2]
[382507454,1756650646323,-1125.15,0.00017652,2]
[382507455,1756650646332,-480.0,0.00017652,2]
[382507456,1756650646342,-4020.94,0.00017652,2]
[382507457,1756650646351,-1095.63,0.00017652,2]
[382507458,1756650646360,-744.59,0.00017652,2]
[382507459,1756650646371,-1034.21,0.00017652,2]
[382507460,1756650646381,-480.0,0.00017652,2]
[382507461,1756650646391,-399.53871809,0.00017652,2]
[382507462,1756650646400,-838.58,0.00017652,2]
[382507463,1756650646410,-480.0,0.00017652,2]
[382507464,1756650646419,-1908.03,0.00017652,2]
[382507465,1756650646429,-2175.92,0.00017652,2]
[382507466,1756650646438,-2170.51,0.00017652,2]
[382507467,1756650646448,-901.7,0.00017652,2]
[382507468,1756650646458,-878.89,0.00017652,2]
[382507469,1756650646467,-3425.88,0.00017652,2]
[382507470,1756650646476,-210.98623034,0.00017652,2]
[382507471,1756650646486,-1164.01,0.00017652,2]
[382507472,1756650646495,-500.0,0.00017662,2]
[382507473,1756650646505,-844.66,0.00017662,2]
[382507474,1756650646517,-809.47,0.00017662,2]
[382507475,1756650646527,-500.0,0.00017662,2]
[382507476,1756650646536,-480.0,0.00017662,2]
[382507477,1756650646545,-480.0,0.00017662,2]
[382507478,1756650646555,-480.0,0.00017662,2]
[382507479,1756650646564,-904.0,0.00017662,2]
[382507480,1756650646574,-779.18,0.00017662,2]
[382507481,1756650646583,-2310.96,0.00017662,2]
[382507482,1756650646734,-480.0,0.00017662,2]
[382507483,1756650646745,-224.34141797,0.00017662,2]
[382507484,1756650646754,-1170.12,0.00017662,2]
[382507485,1756650646766,-1486.12,0.00017662,2]
[382507486,1756650646777,-1545.62,0.00017662,2]
[382507487,1756650646786,-1159.21,0.00017662,2]
[382507488,1756650646795,-480.0,0.00017662,2]
[382507489,1756650646804,-734.52,0.00017662,2]
[382507490,1756650646813,-690.85,0.00017662,2]
[382507491,1756650646822,-480.0,0.00017662,2]
[382507492,1756650646831,-693.34,0.00017662,2]
[382507493,1756650646840,-835.4,0.00017662,2]
[382507494,1756650646849,-1040.93,0.00017662,2]
[382507495,1756650646858,-2915.65,0.00017662,2]
[382507496,1756650646867,-480.0,0.00017662,2]
[382507497,1756650646876,-480.0,0.00017662,2]
[382507498,1756650646885,-720.56,0.00017662,2]
[382507499,1756650646895,-480.0,0.00017662,2]
[382507500,1756650646903,-480.0,0.00017662,2]
[382507501,1756650646912,-773.04,0.00017662,2]
[382507502,1756650646921,-928.3,0.00017662,2]
[382507503,1756650646930,-1061.62,0.00017662,2]
[382507504,1756650646939,-1297.26,0.00017662,2]
[382507505,1756650646948,-1530.05,0.00017662,2]
[382507506,1756650646957,-798.99,0.00017662,2]
[382507507,1756650646966,-624.76,0.00017662,2]
[382507508,1756650646975,-1016.37,0.00017662,2]
[382507509,1756650646985,-723.94,0.00017662,2]
[382507510,1756650646994,-1341.26,0.00017662,2]
[382507511,1756650647003,-597.64,0.00017662,2]
[382507512,1756650647012,-480.0,0.00017662,2]
[382507513,1756650647021,-480.0,0.00017662,2]
[382507514,1756650647030,-722.75,0.00017662,2]
[382507515,1756650647039,-1064.52,0.00017662,2]
[382507516,1756650647048,-1629.78,0.00017662,2]
[382507517,1756650647058,-480.0,0.00017662,2]
[382507518,1756650647067,-1658.73,0.00017662,2]
[382507519,1756650647076,-1459.25,0.00017662,2]
[382507520,1756650647085,-1395.41,0.00017662,2]
[382507521,1756650647094,-480.0,0.00017662,2]
[382507522,1756650647103,-1828.14,0.00017662,2]
[382507523,1756650647112,-480.0,0.00017662,2]
[382507524,1756650647121,-596.41,0.00017662,2]
[382507525,1756650647130,-678.71,0.00017662,2]
[382507526,1756650647140,-480.0,0.00017662,2]
[382507527,1756650647149,-480.0,0.00017662,2]
[382507528,1756650647158,-859.45,0.00017662,2]
[382507529,1756650647167,-916.14,0.00017662,2]
[382507530,1756650647176,-480.0,0.00017662,2]
[382507531,1756650647185,-888.31,0.00017662,2]
[382507532,1756650647194,-720.52,0.00017662,2]
[382507533,1756650647203,-589.63,0.00017662,2]
[382507534,1756650647212,-1510.15,0.00017662,2]
[382507535,1756650647221,-596.22,0.00017662,2]
[382507536,1756650647230,-1079.88,0.00017662,2]
[382507537,1756650647239,-480.0,0.00017662,2]
[382507538,1756650647248,-1233.11,0.00017662,2]
[382507539,1756650647257,-769.63,0.00017662,2]
[382507540,1756650647268,-494.75,0.00017673,2]
[382507541,1756650647277,-1000.0,0.000177,2]
[382507542,1756650647287,-151.0,0.000177,2]
[382507543,1756650647296,-151.0,0.000177,2]
[382507544,1756650647305,-151.0,0.000177,2]
[382507545,1756650647314,-151.0,0.000177,2]
[382507546,1756650647325,-151.0,0.000177,2]
[382507547,1756650647336,-151.0,0.000177,2]
[382507548,1756650647345,-480.0,0.00017759,2]
[382507549,1756650647354,-494.51,0.00017759,2]
[382507550,1756650647363,-1409.85,0.00017759,2]
[382507551,1756650647374,-480.0,0.00017759,2]
[382507552,1756650647394,-480.0,0.00017759,2]
[382507553,1756650647406,-1148.08,0.00017759,2]
[382507554,1756650647416,-480.0,0.00017759,2]
[382507555,1756650647425,-480.0,0.00017759,2]
[382507556,1756650647435,-552.22,0.00017759,2]
[382507557,1756650647444,-1732.11,0.00017759,2]
[382507558,1756650647453,-480.0,0.00017759,2]
[382507559,1756650647462,-151.0,0.00017759,2]
[382507560,1756650647471,-480.0,0.00017759,2]
[382507561,1756650647479,-151.0,0.00017759,2]
[382507562,1756650647490,-151.0,0.00017759,2]
[382507563,1756650647499,-151.0,0.00017759,2]
[382507564,1756650647509,-1433.79,0.00017759,2]
[382507565,1756650647520,-151.0,0.00017759,2]
[382507566,1756650647529,-151.0,0.00017759,2]
[382507567,1756650647539,-814.06,0.00017759,2]
[382507568,1756650647548,-480.0,0.00017759,2]
[382507569,1756650647558,-151.0,0.00017759,2]
[382507570,1756650647567,-396.759893,0.00017759,2]
[382507571,1756650647577,-396.759893,0.00017759,2]
[382507572,1756650647587,-396.759893,0.00017759,2]
[382507573,1756650647596,-151.0,0.00017759,2]
[382507574,1756650647605,-151.0,0.00017759,2]
[382507575,1756650647615,-164.34718,0.00017759,2]
[382507576,1756650647624,-396.759893,0.00017759,2]
[382507577,1756650647634,-151.0,0.00017759,2]
[382507578,1756650647643,-480.0,0.00017759,2]
[382507579,1756650647654,-5320.09,0.00017759,2]
[382507580,1756650647663,-523.25,0.00017759,2]
[382507581,1756650647678,-778.39,0.00017759,2]
[382507582,1756650647687,-151.0,0.00017759,2]
[382507583,1756650647697,-774.92,0.00017759,2]
[382507584,1756650647706,-728.12,0.00017759,2]
[382507585,1756650647718,-1619.01,0.00017759,2]
[382507586,1756650647727,-668.38,0.00017759,2]
[382507587,1756650647737,-151.0,0.00017759,2]
[382507588,1756650647748,-151.0,0.00017759,2]
[382507589,1756650647758,-151.0,0.00017759,2]
[382507590,1756650647770,-151.0,0.00017759,2]
[382507591,1756650647779,-151.343345,0.00017759,2]
[382507592,1756650647789,-151.0,0.00017759,2]
[382507593,1756650647798,-151.0,0.00017759,2]
[382507594,1756650647808,-151.0,0.00017759,2]
[382507595,1756650647818,-199.504595,0.00017759,2]
[382507596,1756650647827,-1282.02,0.00017759,2]